bitfinex/quotes_BTCUSD_20241101
["timestamp","ask_amount","ask_price","bid_price","bid_amount"]
[1730441592984,0.68442155,69445.0,69444.0,0.100822]
[1730441593211,0.67104721,69445.0,69444.0,0.100822]
[1730441593471,0.68443235,69445.0,69444.0,0.100822]
[1730441596031,0.54595505,69445.0,69444.0,0.100822]
[1730441596242,0.54595505,69445.0,69444.0,0.285722]
[1730441596500,0.54595505,69445.0,69444.0,0.29707972]
[1730441597832,0.25738314,69445.0,69444.0,0.30207972]
[1730441598072,0.15738314,69445.0,69444.0,0.30207972]
[1730441599400,0.25738314,69445.0,69444.0,0.30207972]
[1730441599650,0.11338514,69445.0,69444.0,0.30207972]
[1730441600569,0.01338514,69445.0,69444.0,0.44607972]
[1730441600781,0.01338514,69445.0,69444.0,0.46907972]
[1730441600990,0.01338514,69445.0,69444.0,0.47407972]
[1730441604073,0.243986,69452.0,69451.0,0.005]
[1730441604514,0.243986,69452.0,69451.0,0.09899897]
[1730441604718,0.243986,69452.0,69451.0,0.1806]
[1730441604933,0.243986,69452.0,69451.0,0.19199897]
[1730441605574,0.243986,69452.0,69451.0,0.19282097]
[1730441607668,0.243981,69454.0,69451.0,0.19282097]
[1730441607877,0.243981,69454.0,69453.0,0.005]
[1730441608089,0.243981,69454.0,69453.0,0.1791]
[1730441608309,0.143973,69458.0,69455.0,0.01]
[1730441608532,0.04280866,69475.0,69455.0,0.36595707]
[1730441608743,0.09437734,69479.0,69455.0,0.37443982]
[1730441608744,0.143955,69466.0,69455.0,0.37443982]
[1730441609603,0.28789,69471.0,69455.0,0.51289507]
[1730441609816,0.143956,69466.0,69455.0,0.51089507]
[1730441610023,0.14396,69464.0,69455.0,0.51089507]
[1730441610239,0.143954,69467.0,69455.0,0.51089507]
[1730441610450,0.143955,69466.0,69455.0,0.51089507]
[1730441618192,0.1,69467.0,69455.0,0.51089507]
[1730441618407,0.14396,69464.0,69455.0,0.51089507]
[1730441619490,0.143962,69463.0,69455.0,0.51089507]
[1730441620600,0.287931,69461.0,69455.0,0.22346182]
[1730441621256,0.287931,69461.0,69455.0,0.19046182]
[1730441621518,0.14562,69456.0,69455.0,0.02136182]
[1730441621962,0.14562,69456.0,69455.0,0.01]
[1730441622388,0.15900685,69456.0,69455.0,0.01]
[1730441622607,0.247507,69456.0,69455.0,0.01]
[1730441624526,0.23412015,69456.0,69455.0,0.01]
[1730441624754,0.24751399,69456.0,69455.0,0.01]
[1730441625174,0.24751403,69456.0,69455.0,0.01]
[1730441625385,0.15901388,69456.0,69455.0,0.01]
[1730441627329,0.243984,69452.0,69451.0,0.000822]
[1730441627543,0.243984,69452.0,69451.0,1e-06]
[1730441627544,0.62354979,69452.0,69451.0,1e-06]
[1730441628034,0.68776278,69452.0,69451.0,1e-06]
[1730441628458,0.76202709,69452.0,69451.0,1e-06]
[1730441628675,0.82624441,69452.0,69451.0,1e-06]
[1730441629550,0.76203142,69452.0,69451.0,1e-06]
[1730441630242,0.77603142,69452.0,69451.0,0.001001]
[1730441630734,0.83283516,69452.0,69451.0,0.002001]
[1730441630966,0.83283516,69452.0,69451.0,0.001001]
[1730441630967,0.77602448,69452.0,69451.0,0.001001]
[1730441631578,0.76202448,69452.0,69451.0,1e-06]
[1730441632437,0.80482696,69452.0,69451.0,1e-06]
[1730441635843,0.79143985,69452.0,69451.0,1e-06]
[1730441636053,0.80481376,69452.0,69451.0,1e-06]
[1730441636474,0.8951121,69452.0,69451.0,1e-06]
[1730441636896,0.8961121,69452.0,69451.0,1e-06]
[1730441637105,0.8971121,69452.0,69451.0,1e-06]
[1730441637510,0.8961121,69452.0,69451.0,1e-06]
[1730441637717,0.8951121,69452.0,69451.0,1e-06]
[1730441637923,0.9091121,69452.0,69451.0,0.001001]
[1730441639210,0.85230546,69452.0,69451.0,1e-06]
[1730441639431,0.81988006,69452.0,69451.0,0.001001]
[1730441639648,0.8338683,69452.0,69451.0,0.002001]
[1730441639867,0.78999536,69452.0,69451.0,0.002001]
[1730441640102,0.57391794,69452.0,69451.0,0.002001]
[1730441640283,0.56055591,69452.0,69451.0,0.002001]
[1730441642377,0.31043925,69452.0,69451.0,0.002001]
[1730441642578,0.31043925,69452.0,69451.0,0.007001]
[1730441643207,0.29643925,69452.0,69451.0,0.006001]
[1730441643415,0.41593931,69452.0,69451.0,0.005001]
[1730441643630,0.42993931,69452.0,69451.0,0.006001]
[1730441643841,0.54393931,69452.0,69451.0,0.007001]
[1730441644501,0.65491225,69452.0,69451.0,0.006001]
[1730441645353,0.61103931,69452.0,69451.0,0.006001]
[1730441645748,0.59703931,69452.0,69451.0,0.005001]
[1730441647273,0.61041911,69452.0,69451.0,0.005001]
[1730441649667,0.61043435,69452.0,69451.0,0.005001]
[1730441649880,0.59703931,69452.0,69451.0,0.005001]
[1730441650091,0.52933435,69452.0,69451.0,0.005001]
[1730441650316,0.39583429,69452.0,69451.0,0.005001]
[1730441651387,0.38243925,69452.0,69451.0,0.005001]
[1730441651841,0.243984,69452.0,69451.0,0.005001]
[1730441652286,0.25739045,69452.0,69451.0,0.005001]
[1730441652498,0.25739045,69452.0,69451.0,0.010001]
[1730441653508,0.25903445,69452.0,69451.0,0.010001]
[1730441654656,0.37238236,69452.0,69451.0,0.010001]
[1730441655310,0.37238236,69452.0,69451.0,0.005001]
[1730441655582,0.37238236,69452.0,69451.0,0.010001]
[1730441656465,0.37238236,69452.0,69451.0,1e-06]
[1730441656466,0.69053761,69452.0,69451.0,1e-06]
[1730441656662,0.78083595,69452.0,69451.0,1e-06]
[1730441656868,0.84503412,69452.0,69451.0,1e-06]
[1730441657082,0.93883454,69452.0,69451.0,1e-06]
[1730441657705,0.8485362,69452.0,69451.0,1e-06]
[1730441658116,0.8625362,69452.0,69451.0,0.001001]
[1730441658319,0.8485362,69452.0,69451.0,1e-06]
[1730441658521,0.93413377,69452.0,69451.0,1e-06]
[1730441659348,0.94813377,69452.0,69451.0,0.001001]
[1730441659565,0.99065002,69452.0,69451.0,0.001001]
[1730441659779,0.96213377,69452.0,69451.0,0.002001]
[1730441660674,0.91906332,69452.0,69451.0,0.002001]
[1730441660877,1.00470347,69452.0,69451.0,0.002001]
[1730441661145,0.91907926,69452.0,69451.0,0.002001]
[1730441661554,1.02607622,69452.0,69451.0,0.002001]
[1730441661769,0.91907926,69452.0,69451.0,0.002001]
[1730441661985,0.9629522,69452.0,69451.0,0.002001]
[1730441662625,1.06994916,69452.0,69451.0,0.002001]
[1730441663269,1.07244145,69452.0,69451.0,0.002001]
[1730441663618,0.96544449,69452.0,69451.0,0.002001]
[1730441664522,0.96544375,69452.0,69451.0,0.002001]
[1730441665076,1.16848174,69452.0,69451.0,1e-06]
[1730441665569,0.39410666,69449.0,69448.0,0.000822]
[1730441665795,1.40459914,69449.0,69448.0,0.000822]
[1730441665993,1.31986326,69449.0,69448.0,0.000822]
[1730441666599,1.44851834,69449.0,69448.0,0.000822]
[1730441666752,1.44951834,69449.0,69448.0,0.000822]
[1730441667795,1.45051834,69449.0,69448.0,0.000822]
[1730441668612,1.32186326,69449.0,69448.0,0.000822]
[1730441669592,1.32186326,69449.0,69435.0,0.000914]
[1730441669593,0.39411466,69445.0,69435.0,0.000914]
[1730441669810,0.6905685,69445.0,69436.0,0.005]
[1730441669987,0.78086684,69445.0,69436.0,0.005]
[1730441670195,0.82338299,69445.0,69437.0,0.005]
[1730441670405,0.78086684,69445.0,69437.0,0.005]
[1730441670603,1.00749357,69445.0,69437.0,0.005]
[1730441671009,1.00849357,69445.0,69437.0,0.005]
[1730441672440,0.8797801,69445.0,69437.0,0.005]
[1730441673336,0.88023342,69445.0,69437.0,0.005]
[1730441674827,0.889175,69445.0,69437.0,0.005]
[1730441675678,1.01792143,69445.0,69437.0,0.005]
[1730441676092,0.889175,69445.0,69435.0,0.000914]
[1730441677551,0.889175,69445.0,69435.0,0.005914]
[1730441677866,1.0179011,69445.0,69435.0,0.005914]
[1730441678721,0.96416958,69445.0,69435.0,0.005914]
[1730441679808,1.21616958,69445.0,69435.0,0.005914]
[1730441683072,1.21416958,69445.0,69435.0,0.005914]
[1730441683293,1.08544348,69445.0,69435.0,0.005914]
[1730441683507,1.08793624,69445.0,69435.0,0.005914]
[1730441684161,1.08793624,69445.0,69435.0,0.000914]
[1730441684393,1.08793624,69445.0,69435.0,0.005914]
[1730441687003,0.83793624,69445.0,69435.0,0.005914]
[1730441687342,0.83793624,69445.0,69435.0,0.000914]
[1730441687551,0.83793624,69445.0,69435.0,0.005914]
[1730441688243,0.88044117,69445.0,69435.0,0.005914]
[1730441693420,1.00916727,69445.0,69435.0,0.005914]
[1730441697310,0.88044117,69445.0,69435.0,0.005914]
[1730441698340,0.88044117,69445.0,69436.0,0.005]
[1730441700000,0.88244117,69445.0,69436.0,0.005]
[1730441700212,0.88044117,69445.0,69436.0,0.005]
[1730441700590,0.97682631,69445.0,69436.0,0.005]
[1730441700808,0.88044117,69445.0,69436.0,0.005]
[1730441701181,1.02531149,69445.0,69436.0,0.005]
[1730441701824,1.02531149,69445.0,69435.0,0.000914]
[1730441702030,1.02531149,69445.0,69436.0,0.005]
[1730441702230,0.88044117,69445.0,69436.0,0.005]
[1730441702431,0.97682631,69445.0,69436.0,0.005]
[1730441702634,0.88044117,69445.0,69436.0,0.005]
[1730441705024,0.88044117,69445.0,69437.0,0.005]
[1730441706046,1.02540044,69445.0,69439.0,0.0768]
[1730441706206,0.88044117,69445.0,69439.0,0.0768]
[1730441707481,0.88053232,69445.0,69439.0,0.0768]
[1730441707953,0.73541801,69445.0,69439.0,0.0768]
[1730441708324,0.89397534,69445.0,69439.0,0.0768]
[1730441708728,0.73541801,69445.0,69439.0,0.0768]
[1730441708936,0.63903287,69445.0,69439.0,0.0768]
[1730441709138,0.63903234,69445.0,69439.0,0.0768]
[1730441709478,0.79758467,69445.0,69439.0,0.0768]
[1730441710838,0.63903234,69445.0,69439.0,0.0768]
[1730441711056,0.70733601,69445.0,69443.0,0.0934]
[1730441711274,0.60942275,69445.0,69444.0,0.105822]
[1730441711490,0.42846257,69445.0,69444.0,0.280522]
[1730441711687,0.42596981,69445.0,69444.0,0.280522]
[1730441712103,0.42496981,69445.0,69444.0,0.280522]
[1730441712519,0.4259612,69445.0,69444.0,0.280522]
[1730441712718,0.53509191,69445.0,69444.0,0.280522]
[1730441713148,0.53409191,69445.0,69444.0,0.280522]
[1730441713359,0.53509191,69445.0,69444.0,0.280522]
[1730441714830,0.67354716,69445.0,69444.0,0.275522]
[1730441715030,0.67354716,69445.0,69444.0,0.270522]
[1730441716630,0.80231477,69445.0,69444.0,0.275522]
[1730441717268,0.56441645,69445.0,69444.0,0.275522]
[1730441719590,0.55099684,69445.0,69444.0,0.275522]
[1730441719791,0.56441077,69445.0,69444.0,0.275522]
[1730441720217,0.56441077,69445.0,69444.0,0.100822]
[1730441720840,0.65470911,69445.0,69444.0,0.100822]
[1730441720951,0.79318641,69445.0,69444.0,0.100822]
[1730441722242,0.77977248,69445.0,69444.0,0.100822]
[1730441722459,0.79318425,69445.0,69444.0,0.100822]
[1730441722669,0.92197784,69445.0,69444.0,0.09136132]
[1730441723278,0.90856607,69445.0,69444.0,0.09136132]
[1730441723484,0.92197792,69445.0,69444.0,0.09136132]
[1730441724255,0.73962768,69445.0,69444.0,0.09136132]
[1730441724452,0.69320228,69445.0,69444.0,0.09136132]
[1730441724698,0.69307777,69445.0,69444.0,0.09136132]
[1730441725322,0.69307798,69445.0,69444.0,0.09136132]
[1730441729337,0.56428394,69445.0,69444.0,0.09136132]
[1730441729509,0.83155338,69445.0,69444.0,0.09136132]
[1730441730593,0.81814132,69445.0,69444.0,0.09136132]
[1730441730817,0.8315521,69445.0,69444.0,0.09136132]
[1730441732668,0.78914018,69445.0,69444.0,0.09136132]
[1730441733550,0.7757294,69445.0,69444.0,0.09136132]
[1730441735035,0.745269,69445.0,69444.0,0.09136132]
[1730441735897,0.6067917,69445.0,69444.0,0.09136132]
[1730441738742,0.60676674,69445.0,69444.0,0.09136132]
[1730441738950,0.60676674,69445.0,69444.0,0.26906132]
[1730441739182,0.56425841,69445.0,69444.0,0.26906132]
[1730441739360,0.67158093,69445.0,69444.0,0.26906132]
[1730441740114,0.81005823,69445.0,69444.0,0.26906132]
[1730441741451,0.56425841,69445.0,69444.0,0.26906132]
[1730441742345,0.55084587,69445.0,69444.0,0.26906132]
[1730441742545,0.56426373,69445.0,69444.0,0.26906132]
[1730441743277,0.65454245,69445.0,69444.0,0.18726132]
[1730441746106,0.64276859,69445.0,69444.0,0.18726132]
[1730441746311,0.64276859,69445.0,69444.0,0.09136132]
[1730441746523,0.7946672,69445.0,69444.0,0.09136132]
[1730441748879,0.92342416,69445.0,69444.0,0.09136132]
[1730441749088,0.96595766,69445.0,69444.0,0.09136132]
[1730441749287,0.8372007,69445.0,69444.0,0.09136132]
[1730441750083,0.82377939,69445.0,69444.0,0.09136132]
[1730441750524,0.83720167,69445.0,69444.0,0.09136132]
[1730441754862,0.79077627,69445.0,69444.0,0.09136132]
[1730441755065,0.79077627,69445.0,69444.0,0.17286132]
[1730441755268,0.90619652,69445.0,69444.0,0.17286132]
[1730441756225,0.69094755,69445.0,69444.0,0.17286132]
[1730441756451,0.55247025,69445.0,69444.0,0.17286132]
[1730441757024,0.55259841,69445.0,69444.0,0.17286132]
[1730441760924,0.55261479,69445.0,69444.0,0.17286132]
[1730441762392,0.40521796,69445.0,69444.0,0.28056132]
[1730441762643,0.18960193,69445.0,69444.0,0.29658261]
[1730441762889,0.002644,69445.0,69444.0,0.29658261]
[1730441763125,0.146642,69445.0,69444.0,0.29658261]
[1730441763599,0.002644,69445.0,69444.0,0.49014167]
[1730441763866,0.001644,69452.0,69451.0,0.005]
[1730441764097,0.001644,69452.0,69451.0,0.1771]
[1730441764322,0.001644,69452.0,69451.0,0.19807343]
[1730441764577,0.001644,69456.0,69455.0,0.1786]
[1730441764578,0.14562,69456.0,69455.0,0.1786]
[1730441764796,0.24562,69456.0,69455.0,0.1786]
[1730441765040,0.101644,69456.0,69455.0,0.19457343]
[1730441765271,0.14562,69456.0,69455.0,0.22070782]
[1730441765498,0.001644,69456.0,69455.0,0.22070782]
[1730441765720,0.001644,69456.0,69455.0,0.19957343]
[1730441765976,0.001644,69456.0,69455.0,0.20245265]
[1730441766224,0.001644,69456.0,69455.0,0.34855143]
[1730441766457,0.001644,69456.0,69455.0,0.37655143]
[1730441766686,0.001644,69456.0,69455.0,0.37855143]
[1730441766911,0.001644,69456.0,69455.0,0.37655143]
[1730441767839,0.001644,69456.0,69455.0,0.37155143]
[1730441767841,0.001644,69456.0,69455.0,0.22757343]
[1730441767842,0.14562,69456.0,69455.0,0.22757343]
[1730441768098,0.001644,69456.0,69455.0,0.20457343]
[1730441768318,0.001644,69456.0,69455.0,0.19957343]
[1730441768319,0.24562,69456.0,69455.0,0.19957343]
[1730441771111,0.001644,69456.0,69455.0,0.19957343]
[1730441771353,0.101644,69456.0,69455.0,0.19957343]
[1730441771597,0.24562,69456.0,69455.0,0.19957343]
[1730441772727,0.101644,69456.0,69455.0,0.19957343]
[1730441773845,0.001644,69456.0,69455.0,0.34962829]
[1730441774109,0.001644,69456.0,69455.0,0.34855143]
[1730441774340,0.001644,69456.0,69455.0,0.37155143]
[1730441775472,0.001644,69456.0,69455.0,0.37655143]
[1730441781820,0.001644,69456.0,69455.0,0.51700668]
[1730441787529,0.143922,69482.0,69481.0,0.01]
[1730441787749,0.36161776,69482.0,69481.0,0.01]
[1730441787981,0.36161776,69482.0,69481.0,0.02284674]
[1730441788213,0.143922,69482.0,69481.0,0.02284674]
[1730441788455,0.28782,69488.0,69487.0,0.005]
[1730441788680,0.531729,69488.0,69487.0,0.01]
[1730441789814,0.57374585,69488.0,69487.0,0.01]
[1730441790029,0.65610194,69488.0,69487.0,0.005]
[1730441790491,0.65610194,69488.0,69485.0,0.005]
[1730441790492,0.65064819,69488.0,69485.0,0.005]
[1730441790735,0.1,69486.0,69485.0,0.005]
[1730441791030,0.38236825,69486.0,69485.0,0.005]
[1730441794462,0.23845525,69486.0,69485.0,0.005]
[1730441794674,0.38236825,69486.0,69485.0,0.005]
[1730441803130,0.38401025,69486.0,69485.0,0.005]
[1730441806147,0.49771256,69486.0,69485.0,0.005]
[1730441809905,0.42680254,69486.0,69485.0,0.005]
[1730441810108,0.38401025,69486.0,69485.0,0.005]
[1730441810323,0.42680254,69486.0,69485.0,0.005]
[1730441810876,0.243924,69481.0,69480.0,0.005]
[1730441811081,0.6827522,69481.0,69480.0,0.005]
[1730441811302,0.84097179,69481.0,69480.0,0.005]
[1730441811519,0.84097179,69481.0,69472.0,0.005]
[1730441811520,0.1,69477.0,69472.0,0.005]
[1730441811722,0.243957,69465.0,69464.0,0.005]
[1730441813035,0.243957,69465.0,69464.0,0.01]
[1730441815330,0.38241225,69465.0,69464.0,0.005]
[1730441815541,0.38241225,69465.0,69461.0,0.005]
[1730441815542,0.1,69462.0,69461.0,0.005]
[1730441815751,0.387927,69462.0,69461.0,0.005]
[1730441815956,0.51138691,69462.0,69461.0,0.005]
[1730441816159,0.243971,69458.0,69457.0,0.005]
[1730441816368,0.143973,69457.0,69456.0,0.005821]
[1730441816572,0.243973,69457.0,69456.0,0.005821]
[1730441817201,0.36225572,69457.0,69456.0,0.005821]
[1730441818464,0.36225572,69457.0,69456.0,0.000821]
[1730441818639,0.36225572,69457.0,69456.0,0.005821]
[1730441818889,0.36225572,69457.0,69456.0,0.010821]
[1730441819760,0.243973,69457.0,69456.0,0.010821]
[1730441820620,0.243973,69457.0,69456.0,0.005821]
[1730441820846,0.243973,69457.0,69456.0,0.000821]
[1730441821068,0.243973,69457.0,69456.0,0.005821]
[1730441821966,0.38242825,69457.0,69456.0,0.005821]
[1730441822417,0.38242825,69457.0,69452.0,0.000821]
[1730441822418,0.243982,69453.0,69452.0,0.000821]
[1730441822837,0.323482,69453.0,69452.0,0.000821]
[1730441824957,0.243982,69453.0,69452.0,0.005821]
[1730441827813,0.243982,69453.0,69452.0,0.000821]
[1730441828692,0.38243725,69453.0,69452.0,0.000821]
[1730441828914,0.41546574,69453.0,69452.0,0.000821]
[1730441829803,0.55063868,69453.0,69452.0,0.000821]
[1730441830015,0.67309994,69453.0,69452.0,0.000821]
[1730441830231,0.63033868,69453.0,69452.0,0.000821]
[1730441832011,0.63033868,69453.0,69444.0,0.09136132]
[1730441832012,0.325798,69445.0,69444.0,0.09136132]
[1730441832224,0.55775325,69445.0,69444.0,0.09136132]
[1730441832434,0.55775325,69445.0,69444.0,0.10231211]
[1730441832643,0.55775325,69445.0,69444.0,0.09136132]
[1730441837193,0.60162619,69445.0,69444.0,0.09136132]
[1730441837391,0.74010349,69445.0,69444.0,0.09136132]
[1730441839412,0.74912986,69445.0,69444.0,0.09136132]
[1730441842747,0.74912986,69445.0,69444.0,0.04820101]
[1730441849410,0.65562986,69445.0,69444.0,0.04820101]
[1730441849617,0.57382986,69445.0,69444.0,0.04820101]
[1730441849826,0.57632848,69445.0,69444.0,0.04820101]
[1730441850465,0.39397824,69445.0,69444.0,0.04820101]
[1730441850619,0.39397824,69445.0,69444.0,0.13840101]
[1730441850620,0.29397824,69445.0,69444.0,0.13840101]
[1730441851269,0.29147962,69445.0,69444.0,0.13840101]
[1730441851889,0.39147962,69445.0,69444.0,0.13840101]
[1730441854718,0.48783289,69445.0,69444.0,0.13840101]
[1730441854934,0.62631019,69445.0,69444.0,0.13840101]
[1730441859342,0.243998,69445.0,69444.0,0.22090101]
[1730441859563,0.143998,69445.0,69444.0,0.23209386]
[1730441860859,0.243998,69445.0,69444.0,0.23209386]
[1730441861315,0.431965,69450.0,69449.0,0.005]
[1730441861539,0.431965,69450.0,69449.0,0.1846]
[1730441861766,0.431965,69450.0,69449.0,0.19571346]
[1730441862647,0.431965,69450.0,69449.0,0.09033546]
[1730441862867,0.1,69450.0,69449.0,0.081222]
[1730441863080,0.1,69450.0,69449.0,0.09215532]
[1730441863931,0.243987,69451.0,69450.0,0.005]
[1730441864420,0.243987,69451.0,69450.0,0.01593332]
[1730441864874,0.1,69451.0,69450.0,0.01593332]
[1730441865074,0.001642,69452.0,69451.0,0.005]
[1730441865075,0.101642,69452.0,69451.0,0.005]
[1730441865525,0.001642,69452.0,69451.0,0.36341932]
[1730441866786,0.001642,69452.0,69451.0,0.42911277]
[1730441866989,0.001642,69452.0,69451.0,0.36341932]
[1730441867395,0.001642,69452.0,69451.0,0.21743332]
[1730441867599,0.001642,69452.0,69451.0,0.36141932]
[1730441868101,0.001642,69452.0,69451.0,0.21743332]
[1730441869174,0.145626,69452.0,69451.0,0.18943332]
[1730441869394,0.145626,69452.0,69451.0,0.10883332]
[1730441869637,0.145626,69452.0,69451.0,0.0979]
[1730441870064,0.145626,69452.0,69451.0,0.10875688]
[1730441870274,0.145626,69452.0,69451.0,0.0979]
[1730441871138,0.145626,69452.0,69451.0,0.1029]
[1730441872016,0.145626,69452.0,69451.0,0.0979]
[1730441872239,0.145626,69452.0,69451.0,0.1029]
[1730441875286,0.145626,69452.0,69451.0,0.0979]
[1730441875514,0.0739608,69452.0,69449.0,0.005822]
[1730441875737,0.143988,69450.0,69449.0,0.005822]
[1730441875952,0.143988,69450.0,69449.0,0.000822]
[1730441875953,0.29399121,69450.0,69449.0,0.000822]
[1730441876176,0.66001816,69450.0,69449.0,0.000822]
[1730441877241,0.38244325,69450.0,69449.0,0.000822]
[1730441881404,0.38244325,69450.0,69449.0,0.091722]
[1730441882715,0.243988,69450.0,69449.0,0.091722]
[1730441883324,0.243988,69450.0,69449.0,0.096722]
[1730441883573,0.243988,69450.0,69449.0,0.10753605]
[1730441884821,0.33953195,69450.0,69449.0,0.01663605]
[1730441885031,0.5350521,69450.0,69449.0,0.01163605]
[1730441885263,0.67350735,69450.0,69449.0,0.000822]
[1730441886298,0.62963441,69450.0,69449.0,0.000822]
[1730441886504,0.61624656,69450.0,69449.0,0.000822]
[1730441886753,0.62964049,69450.0,69449.0,0.000822]
[1730441889590,0.63868167,69450.0,69449.0,0.000822]
[1730441889827,0.75937944,69450.0,69449.0,0.000822]
[1730441890031,0.7673844,69450.0,69449.0,0.000822]
[1730441890258,0.71659499,69450.0,69449.0,0.000822]
[1730441890472,0.87453789,69450.0,69449.0,0.000822]
[1730441891367,0.92341083,69450.0,69449.0,0.000822]
[1730441891583,0.92340298,69450.0,69449.0,0.000822]
[1730441891791,1.03039741,69450.0,69449.0,0.000822]
[1730441892203,0.92340298,69450.0,69449.0,0.000822]
[1730441892427,1.03039741,69450.0,69449.0,0.000822]
[1730441893275,0.92340298,69450.0,69449.0,0.000822]
[1730441893489,1.03041535,69450.0,69449.0,0.000822]
[1730441893689,0.98654241,69450.0,69449.0,0.000822]
[1730441893920,0.97321306,69450.0,69449.0,0.000822]
[1730441894137,0.98660345,69450.0,69449.0,0.000822]
[1730441895235,0.72157561,69450.0,69449.0,0.000822]
[1730441895442,0.87961451,69450.0,69449.0,0.000822]
[1730441899044,0.86622664,69450.0,69449.0,0.000822]
[1730441899869,0.70818774,69450.0,69449.0,0.000822]
[1730441900074,0.87967424,69450.0,69449.0,0.000822]
[1730441900714,0.87967477,69450.0,69449.0,0.000822]
[1730441902698,0.92336612,69450.0,69449.0,0.000822]
[1730441903527,0.82201884,69450.0,69449.0,0.000822]
[1730441904603,0.82202536,69450.0,69449.0,0.000822]
[1730441904827,0.82203279,69450.0,69449.0,0.000822]
[1730441905241,0.91838007,69450.0,69449.0,0.000822]
[1730441907135,0.66365983,69450.0,69449.0,0.000822]
[1730441907360,0.39848191,69450.0,69449.0,0.000822]
[1730441907568,0.49482919,69450.0,69449.0,0.000822]
[1730441908139,0.5232655,69450.0,69449.0,0.000822]
[1730441908574,0.53414815,69450.0,69449.0,0.000822]
[1730441908931,0.52184214,69450.0,69449.0,0.000822]
[1730441909157,0.42691889,69450.0,69449.0,0.000822]
[1730441909357,0.28846401,69450.0,69449.0,0.000822]
[1730441909566,0.245632,69450.0,69449.0,0.000822]
[1730441909969,0.245632,69450.0,69449.0,0.098322]
[1730441916896,0.327932,69450.0,69449.0,0.000822]
[1730441917118,0.65690814,69450.0,69449.0,0.000822]
[1730441917334,0.90961644,69450.0,69449.0,0.000822]
[1730441917773,0.97560511,69450.0,69449.0,0.000822]
[1730441918505,0.97568061,69450.0,69449.0,0.000822]
[1730441918941,0.98470927,69450.0,69449.0,0.000822]
[1730441920709,0.87755921,69450.0,69449.0,0.000822]
[1730441922104,1.05361071,69450.0,69449.0,0.000822]
[1730441922736,0.92503063,69450.0,69449.0,0.000822]
[1730441922940,1.05363526,69450.0,69449.0,0.000822]
[1730441924799,1.05563526,69450.0,69449.0,0.000822]
[1730441925209,1.05763526,69450.0,69449.0,0.000822]
[1730441928068,1.22014527,69450.0,69449.0,0.000822]
[1730441930216,1.22014527,69450.0,69435.0,0.000914]
[1730441930217,0.3990779,69436.0,69435.0,0.000914]
[1730441930429,0.8664702,69436.0,69435.0,0.000914]
[1730441930656,0.91034314,69436.0,69435.0,0.00998699]
[1730441930918,0.91034314,69436.0,69432.0,0.000814]
[1730441930919,0.327423,69433.0,69432.0,0.000814]
[1730441931093,0.6241153,69433.0,69432.0,0.000814]
[1730441931332,0.7625926,69433.0,69432.0,0.000814]
[1730441932057,0.8713926,69433.0,69432.0,0.001814]
[1730441932266,0.24904,69425.0,69412.0,0.21769576]
[1730441932484,0.24904,69425.0,69411.0,0.000815]
[1730441932485,0.144067,69412.0,69411.0,0.000815]
[1730441932708,0.42533076,69412.0,69411.0,0.000815]
[1730441932919,0.38252225,69412.0,69411.0,0.000815]
[1730441933134,0.42533078,69412.0,69411.0,0.000815]
[1730441933363,0.38252225,69412.0,69411.0,0.000815]
[1730441934170,0.39140545,69412.0,69411.0,0.000815]
[1730441935253,0.38252225,69412.0,69411.0,0.000815]
[1730441942549,0.23845525,69412.0,69399.0,0.20860832]
[1730441942761,0.144092,69400.0,69399.0,0.20860832]
[1730441942974,0.144096,69398.0,69397.0,0.094]
[1730441943820,0.3161424,69398.0,69397.0,0.094]
[1730441944039,0.244096,69398.0,69397.0,0.094]
[1730441944466,0.244098,69397.0,69396.0,0.005]
[1730441948372,0.244098,69397.0,69396.0,0.0128735]
[1730441948895,0.244098,69397.0,69396.0,0.005]
[1730441949097,0.244098,69397.0,69396.0,0.0128735]
[1730441949310,0.244098,69397.0,69396.0,0.005]
[1730441949510,0.244098,69397.0,69396.0,0.0128735]
[1730441949731,0.244098,69397.0,69396.0,0.005]
[1730441949947,0.144081,69406.0,69401.0,0.005]
[1730441950160,0.1500609,69419.0,69402.0,0.005]
[1730441950161,0.1,69403.0,69402.0,0.005]
[1730441950377,0.244085,69403.0,69402.0,0.01328862]
[1730441950787,0.244085,69403.0,69402.0,0.005]
[1730441951215,0.244085,69403.0,69402.0,0.01328862]
[1730441952063,0.3261253,69403.0,69402.0,0.01328862]
[1730441952270,0.3261253,69403.0,69402.0,0.005]
[1730441952705,0.432264,69402.0,69401.0,0.005]
[1730441953546,0.144098,69397.0,69396.0,0.000822]
[1730441953797,0.2973254,69397.0,69396.0,0.000822]
[1730441955474,0.244098,69397.0,69396.0,0.000822]
[1730441957746,0.1,69398.0,69396.0,0.000822]
[1730441957986,0.1,69397.0,69396.0,0.000822]
[1730441960214,0.244098,69397.0,69396.0,0.000822]
[1730441960645,0.2973262,69397.0,69396.0,0.000822]
[1730441961058,0.244098,69397.0,69396.0,0.000822]
[1730441962657,0.1,69399.0,69398.0,0.002]
[1730441962863,0.1,69398.0,69396.0,0.000822]
[1730441963932,0.244098,69397.0,69396.0,0.000822]
[1730441964826,0.288171,69403.0,69399.0,0.0964]
[1730441964827,0.1,69403.0,69399.0,0.0964]
[1730441965031,0.1,69402.0,69399.0,0.0964]
[1730441965243,0.5360383,69402.0,69399.0,0.0964]
[1730441965451,0.31834254,69402.0,69396.0,0.000822]
[1730441965655,0.244098,69397.0,69396.0,0.000822]
[1730441971437,0.3941589,69397.0,69396.0,0.000822]
[1730441971714,0.34797865,69397.0,69396.0,0.000822]
[1730441972164,0.1,69397.0,69396.0,0.000822]
[1730441972384,0.244094,69399.0,69396.0,0.000822]
[1730441972644,0.1,69397.0,69396.0,0.092022]
[1730441973354,0.244098,69397.0,69396.0,0.000822]
[1730441973586,0.3261442,69397.0,69396.0,0.000822]
[1730441974014,0.244098,69397.0,69396.0,0.000822]
[1730441977596,0.28690142,69397.0,69396.0,0.000822]
[1730441981585,0.28705896,69397.0,69396.0,0.000822]
[1730441982023,0.244098,69397.0,69396.0,0.000822]
[1730441985403,0.1,69397.0,69396.0,0.002822]